fUST/lending_fUST_20260107
["ID","MTS","AMOUNT","RATE_DAILY","PERIOD"]
[400614897,1767744648037,-152.72,0.00035425,60]
[400614898,1767744648047,-1520.61,0.00035464,60]
[400614899,1767744648056,-240.34,0.000355,7]
[400614900,1767744648066,-217.46,0.000355,7]
[400614901,1767744648075,-2322.0,0.000355,30]
[400614902,1767744648085,-1326.666,0.000355,120]
[400614903,1767744648094,-1326.666,0.000355,120]
[400614904,1767744648104,-1326.66,0.000355,120]
[400614905,1767744648114,-152.72,0.00035525,60]
[400614906,1767744648124,-1520.61,0.00035564,60]
[400614907,1767744648133,-1603.97,0.00035616,120]
[400614908,1767744648142,-180.58134689,0.00035616,2]
[400614909,1767744648152,-152.72,0.00035625,60]
[400614910,1767744648162,-1520.61,0.00035664,60]
[400614911,1767744648172,-449.0,0.000357,2]
[400614912,1767744648182,-152.72,0.00035725,60]
[400614913,1767744648191,-1520.61,0.00035764,60]
[400614914,1767744648201,-249.6,0.00035804,30]
[400614915,1767744648211,-900.0,0.00035813,14]
[400614916,1767744648220,-152.72,0.00035825,60]
[400614917,1767744648229,-2145.0,0.00035836,2]
[400614918,1767744648239,-1365.0,0.00035836,2]
[400614919,1767744648249,-5578.61176055,0.00035848,38]
[400614920,1767744648258,-1520.61,0.00035864,60]
[400614921,1767744648268,-689.26,0.0003589,39]
[400614922,1767744648278,-507.0,0.0003589,30]
[400614923,1767744648287,-2000.0,0.00035896,7]
[400614924,1767744648296,-152.72,0.00035925,60]
[400614925,1767744648307,-600.0,0.00035958,2]
[400614926,1767744648316,-1520.61,0.00035964,60]
[400614927,1767744648326,-1715.91559797,0.00035981,2]
[400614928,1767744648336,-568.27,0.00036,2]
[400614929,1767744648346,-507.0,0.00036,30]
[400614930,1767744648356,-152.72,0.00036025,60]
[400614931,1767744648365,-1520.61,0.00036064,60]
[400614932,1767744648375,-1715.91559797,0.00036081,2]
[400614933,1767744648385,-152.72,0.00036125,60]
[400614934,1767744648398,-1520.61,0.00036164,60]
[400614935,1767744648407,-390.0,0.00036164,5]
[400614936,1767744648418,-507.0,0.00036164,30]
[400614937,1767744648427,-1715.91559797,0.00036181,2]
[400614938,1767744648439,-2362.32,0.000362,7]
[400614939,1767744648449,-152.72,0.00036225,60]
[400614940,1767744648458,-1520.61,0.00036264,60]
[400614941,1767744648469,-1715.91559797,0.00036281,2]
[400614942,1767744648479,-187.3459384,0.00036301,30]
[400614943,1767744648488,-184.3704767,0.00036301,30]
[400614944,1767744648498,-222.27510074,0.00036303,8]
[400614945,1767744648507,-474.0,0.00036313,120]
[400614946,1767744648517,-152.72,0.00036325,60]
[400614947,1767744648527,-2190.34350837,0.00036332,2]
[400614948,1767744648537,-600.0,0.00036332,2]
[400614949,1767744648546,-1520.61,0.00036364,60]
[400614950,1767744648555,-1715.91559797,0.00036381,2]
[400614951,1767744648565,-20218.78,0.000364,14]
[400614952,1767744648574,-200.0,0.00036415,120]
[400614953,1767744648584,-152.72,0.00036425,60]
[400614954,1767744648593,-689.26,0.00036438,40]
[400614955,1767744648604,-507.0,0.00036438,30]
[400614956,1767744648613,-500.0,0.0003645,30]
[400614957,1767744648623,-500.0,0.0003645,30]
[400614958,1767744648632,-500.0,0.0003645,30]
[400614959,1767744648641,-500.0,0.0003645,30]
[400614960,1767744648650,-500.0,0.0003645,30]
[400614961,1767744648660,-500.0,0.0003645,30]
[400614962,1767744648670,-500.0,0.0003645,30]
[400614963,1767744648679,-1520.61,0.00036464,60]
[400614964,1767744648689,-1715.91559797,0.00036481,2]
[400614965,1767744648699,-376.8200359,0.00036493,30]
[400614966,1767744648709,-376.8200359,0.00036493,30]
[400614967,1767744648718,-376.8200359,0.00036493,30]
[400614968,1767744648729,-152.72,0.00036525,60]
[400614969,1767744648739,-1520.61,0.00036564,60]
[400614970,1767744648749,-1715.91559797,0.00036581,2]
[400614971,1767744648759,-152.81519316,0.00036625,60]
[400614972,1767744648769,-576909.14,0.00036627,5]
[400614973,1767744648779,-600.6566519,0.0003663,30]
[400614974,1767744648789,-193.7123872,0.0003663,30]
[400614975,1767744648799,-260.4277887,0.0003663,30]
[400614976,1767744648809,-155.6642443,0.0003663,30]
[400614977,1767744648819,-184.3704767,0.0003663,30]
[400614978,1767744648829,-600.6566519,0.0003663,30]
[400614979,1767744648838,-193.7123872,0.0003663,30]
[400614980,1767744648849,-153.0,0.0003663,30]
[400614981,1767744648975,-600.6566519,0.0003663,30]
[400614982,1767744648985,-900.0,0.00036635,14]
[400614983,1767744648995,-1520.61,0.00036664,60]
[400614984,1767744649005,-1715.91559797,0.00036681,2]
[400614985,1767744649015,-723.98055111,0.00036707,2]
[400614986,1767744649024,-507.0,0.00036712,30]
[400614987,1767744649034,-2000.0,0.00036717,7]
[400614988,1767744649043,-339.0,0.00036717,2]
[400614989,1767744649053,-1520.61,0.00036764,60]
[400614990,1767744649063,-1715.91559797,0.00036781,2]
[400614991,1767744649073,-240.34,0.000368,7]
[400614992,1767744649082,-217.46,0.000368,7]
[400614993,1767744649092,-2322.0,0.000368,30]
[400614994,1767744649101,-1520.61,0.00036864,60]
[400614995,1767744649111,-1520.61,0.00036964,60]
[400614996,1767744649120,-151.0,0.00036964,31]
[400614997,1767744649129,-151.0,0.00036964,31]
[400614998,1767744649140,-151.0,0.00036964,31]
[400614999,1767744649150,-689.26,0.00036986,41]
[400615000,1767744649159,-1603.97,0.00036986,120]
[400615001,1767744649169,-507.0,0.00036986,30]
[400615002,1767744649179,-450.0,0.00036986,5]
[400615003,1767744649188,-151.0,0.00037051,31]
[400615004,1767744649198,-151.0,0.00037051,31]
[400615005,1767744649208,-151.0,0.00037051,31]
[400615006,1767744649217,-597.414182,0.00037051,31]
[400615007,1767744649226,-597.414182,0.00037051,31]
[400615008,1767744649236,-151.0,0.00037051,31]
[400615009,1767744649245,-597.414182,0.00037051,31]
[400615010,1767744649255,-151.0,0.00037051,31]
[400615011,1767744649265,-597.414182,0.00037051,31]
[400615012,1767744649274,-1520.61,0.00037064,60]
[400615013,1767744649284,-151.0,0.00037151,31]
[400615014,1767744649294,-151.0,0.00037151,31]
[400615015,1767744649303,-158.849574,0.00037151,31]
[400615016,1767744649313,-164.05427,0.00037151,31]
[400615017,1767744649322,-151.0,0.00037151,31]
[400615018,1767744649333,-158.849574,0.00037151,31]
[400615019,1767744649344,-151.0,0.00037151,31]
[400615020,1767744649353,-158.849574,0.00037151,31]
[400615021,1767744649363,-151.0,0.00037151,31]
[400615022,1767744649372,-158.849574,0.00037151,31]
[400615023,1767744649382,-288.671214,0.00037151,31]
[400615024,1767744649394,-151.0,0.00037151,31]
[400615025,1767744649403,-151.0,0.00037151,31]
[400615026,1767744649413,-151.0,0.00037151,31]
[400615027,1767744649423,-151.000002,0.00037151,31]
[400615028,1767744649434,-95432.94,0.00037155,17]
[400615029,1767744649444,-1520.61,0.00037164,60]
[400615030,1767744649452,-151.0,0.00037203,31]
[400615031,1767744649461,-151.0,0.00037203,31]
[400615032,1767744649473,-406.779852,0.00037203,31]
[400615033,1767744649482,-406.779852,0.00037203,31]
[400615034,1767744649491,-406.779852,0.00037203,31]
[400615035,1767744649501,-406.779852,0.00037203,31]
[400615036,1767744649511,-151.0,0.00037203,31]
[400615037,1767744649522,-151.0,0.00037203,31]
[400615038,1767744649532,-217.495,0.00037224,47]
[400615039,1767744649542,-193224.20236501,0.00037255,7]
[400615040,1767744649551,-4504.444686,0.0003726,31]
[400615041,1767744649561,-4504.444686,0.0003726,31]
[400615042,1767744649571,-4504.444686,0.0003726,31]
[400615043,1767744649580,-4504.444686,0.0003726,31]
[400615044,1767744649591,-1520.61,0.00037264,60]
[400615045,1767744649601,-5969.7052139,0.00037279,39]
[400615046,1767744649611,-2362.32,0.000373,7]
[400615047,1767744649620,-8711.6173148,0.00037303,2]
[400615048,1767744649629,-417.0,0.00037309,2]
[400615049,1767744649640,-714.0,0.00037309,2]
[400615050,1767744649649,-178.0,0.00037309,2]
[400615051,1767744649659,-4393.568553,0.00037345,2]
[400615052,1767744649668,-263.674546,0.00037345,31]
[400615053,1767744649679,-500.0,0.00037345,31]
[400615054,1767744649689,-500.0,0.00037345,31]
[400615055,1767744649698,-500.0,0.00037345,31]
[400615056,1767744649708,-500.0,0.00037345,31]
[400615057,1767744649717,-151.0,0.00037345,31]
[400615058,1767744649727,-151.71239736,0.0003735,2]
[400615059,1767744649738,-151.71239736,0.0003735,2]
[400615060,1767744649747,-303.41720312,0.0003735,2]
[400615061,1767744649757,-151.0,0.00037351,31]
[400615062,1767744649766,-151.0,0.00037351,31]
[400615063,1767744649776,-151.0,0.00037351,31]
[400615064,1767744649786,-151.0,0.00037351,31]
[400615065,1767744649795,-151.0,0.00037351,31]
[400615066,1767744649805,-256.917806,0.00037351,31]
[400615067,1767744649814,-151.0,0.00037351,31]
[400615068,1767744649824,-151.0,0.00037351,31]
[400615069,1767744649833,-151.0,0.00037351,31]
[400615070,1767744649843,-151.0,0.00037351,31]
[400615071,1767744649852,-151.0,0.00037351,31]
[400615072,1767744649862,-151.0,0.00037351,31]
[400615073,1767744649871,-151.0,0.00037351,31]
[400615074,1767744649881,-151.0,0.00037351,31]
[400615075,1767744649891,-151.0,0.00037351,31]
[400615076,1767744649900,-199.109575,0.00037351,31]
[400615077,1767744649910,-151.0,0.00037351,31]
[400615078,1767744649919,-151.0,0.00037351,31]
[400615079,1767744649929,-151.0,0.00037351,31]
[400615080,1767744649938,-151.0,0.00037351,31]
[400615081,1767744649948,-151.0,0.00037351,31]
[400615082,1767744649957,-151.0,0.00037351,31]
[400615083,1767744649967,-151.0,0.00037351,31]
[400615084,1767744649976,-151.0,0.00037351,31]
[400615085,1767744649986,-151.0,0.00037351,31]
[400615086,1767744649995,-151.0,0.00037351,31]
[400615087,1767744650005,-151.0,0.00037351,31]
[400615088,1767744650018,-262.890712,0.00037351,31]
[400615089,1767744650028,-151.0,0.00037351,31]
[400615090,1767744650038,-151.0,0.00037351,31]
[400615091,1767744650047,-151.0,0.00037351,31]
[400615092,1767744650056,-151.0,0.00037351,31]
[400615093,1767744650065,-151.0,0.00037351,31]
[400615094,1767744650075,-151.0,0.00037351,31]
[400615095,1767744650084,-151.0,0.00037351,31]
[400615096,1767744650093,-151.0,0.00037351,31]
[400615097,1767744650103,-151.0,0.00037351,31]
[400615098,1767744650112,-151.0,0.00037351,31]
[400615099,1767744650123,-151.0,0.00037351,31]
[400615100,1767744650132,-151.0,0.00037351,31]
[400615101,1767744650143,-151.0,0.00037351,31]
[400615102,1767744650152,-151.0,0.00037351,31]
[400615103,1767744650161,-151.0,0.00037351,31]
[400615104,1767744650171,-151.0,0.00037351,31]
[400615105,1767744650182,-185.3046056,0.00037351,31]
[400615106,1767744650191,-158.624878,0.00037351,31]
[400615107,1767744650201,-151.0,0.00037351,31]
[400615108,1767744650210,-151.0,0.00037351,31]
[400615109,1767744650219,-151.0,0.00037351,31]
[400615110,1767744650229,-151.0,0.00037351,31]
[400615111,1767744650239,-151.0,0.00037351,31]
[400615112,1767744650249,-273.427612,0.00037351,31]
[400615113,1767744650259,-191.004961,0.00037351,31]
[400615114,1767744650269,-151.0,0.00037351,31]
[400615115,1767744650279,-151.0,0.00037351,31]
[400615116,1767744650289,-151.0,0.00037351,31]
[400615117,1767744650298,-151.0,0.00037351,31]
[400615118,1767744650308,-151.0,0.00037351,31]
[400615119,1767744650318,-151.0,0.00037351,31]
[400615120,1767744650327,-151.0,0.00037351,31]
[400615121,1767744650337,-222.545523,0.00037351,31]
[400615122,1767744650346,-151.0,0.00037351,31]
[400615123,1767744650356,-151.0,0.00037351,31]
[400615124,1767744650365,-151.0,0.00037351,31]
[400615125,1767744650375,-151.0,0.00037351,31]
[400615126,1767744650385,-221.765393,0.00037351,31]
[400615127,1767744650398,-151.0,0.00037351,31]
[400615128,1767744650408,-151.0,0.00037351,31]
[400615129,1767744650418,-151.0,0.00037351,31]
[400615130,1767744650428,-177.372841,0.00037351,31]
[400615131,1767744650438,-151.0,0.00037351,31]
[400615132,1767744650448,-151.0,0.00037351,31]
[400615133,1767744650457,-264.296067,0.00037351,31]
[400615134,1767744650470,-151.0,0.00037351,31]
[400615135,1767744650480,-151.0,0.00037351,31]
[400615136,1767744650490,-158.849574,0.00037351,31]
[400615137,1767744650502,-158.849574,0.00037351,31]
[400615138,1767744650512,-158.849574,0.00037351,31]
[400615139,1767744650522,-158.849574,0.00037351,31]
[400615140,1767744650532,-151.0,0.00037351,31]
[400615141,1767744650542,-151.0,0.00037351,31]
[400615142,1767744650551,-151.0,0.00037351,31]
[400615143,1767744650561,-158.849574,0.00037351,31]
[400615144,1767744650570,-151.0,0.00037351,31]
[400615145,1767744650580,-158.849574,0.00037351,31]
[400615146,1767744650589,-158.849574,0.00037351,31]
[400615147,1767744650598,-151.0,0.00037351,31]
[400615148,1767744650608,-158.849574,0.00037351,31]
[400615149,1767744650618,-151.0,0.00037351,31]
[400615150,1767744650627,-151.0,0.00037351,31]
[400615151,1767744650637,-158.849574,0.00037351,31]
[400615152,1767744650646,-151.0,0.00037351,31]
[400615153,1767744650655,-158.849574,0.00037351,31]
[400615154,1767744650664,-158.849574,0.00037351,31]
[400615155,1767744650674,-151.0,0.00037351,31]
[400615156,1767744650684,-158.849574,0.00037351,31]
[400615157,1767744650694,-151.0,0.00037351,31]
[400615158,1767744650705,-151.0,0.00037351,31]
[400615159,1767744650715,-158.849574,0.00037351,31]
[400615160,1767744650727,-158.849574,0.00037351,31]
[400615161,1767744650737,-151.0,0.00037351,31]
[400615162,1767744650750,-158.849574,0.00037351,31]
[400615163,1767744650760,-158.849584,0.00037351,31]
[400615164,1767744650769,-151.0,0.00037351,31]
[400615165,1767744650777,-151.0,0.00037351,31]
[400615166,1767744650787,-151.0,0.00037351,31]
[400615167,1767744650796,-151.0,0.00037351,31]
[400615168,1767744650805,-164.608793,0.00037351,31]
[400615169,1767744650815,-151.0,0.00037351,31]
[400615170,1767744650824,-151.0,0.00037351,31]
[400615171,1767744650834,-151.0,0.00037351,31]
[400615172,1767744650843,-151.0,0.00037351,31]
[400615173,1767744650852,-2859.12985908,0.00037351,4]
[400615174,1767744650862,-7142.75350321,0.00037355,2]
[400615175,1767744650872,-1520.61,0.00037364,60]
[400615176,1767744650881,-507.0,0.00037397,30]
[400615177,1767744650891,-500.0,0.00037403,31]
[400615178,1767744650900,-500.0,0.00037403,31]
[400615179,1767744650910,-500.0,0.00037403,31]
[400615180,1767744650919,-500.0,0.00037403,31]
[400615181,1767744650928,-500.0,0.00037403,31]
[400615182,1767744650938,-500.0,0.00037403,31]
[400615183,1767744650948,-500.0,0.00037403,31]
[400615184,1767744650957,-500.0,0.00037403,31]
[400615185,1767744650966,-500.0,0.00037403,31]
[400615186,1767744650976,-500.0,0.00037403,31]
[400615187,1767744650985,-500.0,0.00037403,31]
[400615188,1767744650994,-500.0,0.00037403,31]
[400615189,1767744651003,-500.0,0.00037403,31]
[400615190,1767744651012,-500.0,0.00037403,31]
[400615191,1767744651022,-500.0,0.00037403,31]
[400615192,1767744651031,-500.0,0.00037403,31]
[400615193,1767744651041,-151.0,0.00037403,31]
[400615194,1767744651050,-151.0,0.00037403,31]
[400615195,1767744651059,-151.0,0.00037403,31]
[400615196,1767744651069,-151.0,0.00037403,31]
[400615197,1767744651078,-212.158925,0.00037403,31]
[400615198,1767744651087,-406.779852,0.00037403,31]
[400615199,1767744651097,-406.779852,0.00037403,31]
[400615200,1767744651106,-406.779852,0.00037403,31]
[400615201,1767744651119,-406.779852,0.00037403,31]
[400615202,1767744651129,-406.779852,0.00037403,31]
[400615203,1767744651139,-406.779852,0.00037403,31]
[400615204,1767744651149,-406.779852,0.00037403,31]
[400615205,1767744651158,-406.779852,0.00037403,31]
[400615206,1767744651168,-406.779852,0.00037403,31]
[400615207,1767744651177,-406.779852,0.00037403,31]
[400615208,1767744651185,-406.779852,0.00037403,31]
[400615209,1767744651195,-406.779852,0.00037403,31]
[400615210,1767744651204,-406.779852,0.00037403,31]
[400615211,1767744651214,-406.779852,0.00037403,31]
[400615212,1767744651223,-406.779852,0.00037403,31]
[400615213,1767744651233,-406.779842,0.00037403,31]
[400615214,1767744651243,-151.0,0.00037403,31]
[400615215,1767744651254,-151.0,0.00037403,31]
[400615216,1767744651263,-151.0,0.00037403,31]
[400615217,1767744651272,-151.0,0.00037403,31]
[400615218,1767744651282,-244.094588,0.00037403,31]
[400615219,1767744651291,-151.0,0.00037403,31]
[400615220,1767744651300,-151.0,0.00037403,31]
[400615221,1767744651309,-151.0,0.00037403,31]
[400615222,1767744651318,-151.0,0.00037403,31]
[400615223,1767744651328,-151.0,0.00037403,31]
[400615224,1767744651338,-151.0,0.00037403,31]
[400615225,1767744651348,-151.0,0.00037403,31]
[400615226,1767744651357,-151.0,0.00037403,31]
[400615227,1767744651367,-151.0,0.00037403,31]
[400615228,1767744651376,-151.0,0.00037403,31]
[400615229,1767744651387,-151.0,0.00037403,31]
[400615230,1767744651399,-279.238344,0.00037403,31]
[400615231,1767744651408,-245.598663,0.00037403,31]
[400615232,1767744651418,-245.598663,0.00037403,31]
[400615233,1767744651427,-245.598663,0.00037403,31]
[400615234,1767744651436,-245.598663,0.00037403,31]
[400615235,1767744651446,-245.598663,0.00037403,31]
[400615236,1767744651552,-245.598663,0.00037403,31]
[400615237,1767744651562,-245.598663,0.00037403,31]
[400615238,1767744651571,-245.598663,0.00037403,31]
[400615239,1767744651580,-245.598663,0.00037403,31]
[400615240,1767744651589,-245.598663,0.00037403,31]
[400615241,1767744651598,-245.598663,0.00037403,31]
[400615242,1767744651607,-245.598663,0.00037403,31]
[400615243,1767744651616,-245.598663,0.00037403,31]
[400615244,1767744651626,-245.598663,0.00037403,31]
[400615245,1767744651635,-245.598663,0.00037403,31]
[400615246,1767744651645,-245.598666,0.00037403,31]
[400615247,1767744651654,-251.132582,0.00037403,31]
[400615248,1767744651663,-251.132582,0.00037403,31]
[400615249,1767744651673,-251.132582,0.00037403,31]
[400615250,1767744651682,-251.132582,0.00037403,31]
[400615251,1767744651691,-251.132582,0.00037403,31]
[400615252,1767744651700,-251.132582,0.00037403,31]
[400615253,1767744651709,-251.132582,0.00037403,31]
[400615254,1767744651718,-251.132582,0.00037403,31]
[400615255,1767744651727,-251.132582,0.00037403,31]
[400615256,1767744651737,-251.132582,0.00037403,31]
[400615257,1767744651746,-251.132582,0.00037403,31]
[400615258,1767744651756,-251.132582,0.00037403,31]
[400615259,1767744651765,-251.132582,0.00037403,31]
[400615260,1767744651775,-251.132582,0.00037403,31]
[400615261,1767744651785,-251.132582,0.00037403,31]
[400615262,1767744651794,-251.132583,0.00037403,31]
[400615263,1767744651804,-151.0,0.00037403,31]
[400615264,1767744651813,-151.0,0.00037403,31]
[400615265,1767744651823,-151.0,0.00037403,31]
[400615266,1767744651832,-151.0,0.00037403,31]
[400615267,1767744651842,-151.0,0.00037403,31]
[400615268,1767744651851,-151.0,0.00037403,31]
[400615269,1767744651861,-175.225175,0.00037403,31]
[400615270,1767744651871,-151.0,0.00037403,31]
[400615271,1767744651881,-151.0,0.00037403,31]
[400615272,1767744651890,-151.0,0.00037403,31]
[400615273,1767744651899,-151.0,0.00037403,31]
[400615274,1767744651910,-151.0,0.00037403,31]
[400615275,1767744651919,-151.0,0.00037403,31]
[400615276,1767744651929,-151.0,0.00037403,31]
[400615277,1767744651939,-151.0,0.00037403,31]
[400615278,1767744651948,-151.0,0.00037403,31]
[400615279,1767744651957,-151.0,0.00037403,31]
[400615280,1767744651966,-151.0,0.00037403,31]
[400615281,1767744651975,-151.0,0.00037403,31]
[400615282,1767744651984,-219.984459,0.00037403,31]
[400615283,1767744651994,-225.687069,0.00037403,31]
[400615284,1767744652004,-225.687069,0.00037403,31]
[400615285,1767744652013,-225.687069,0.00037403,31]
[400615286,1767744652023,-225.687069,0.00037403,31]
[400615287,1767744652033,-225.687069,0.00037403,31]
[400615288,1767744652043,-225.687069,0.00037403,31]
[400615289,1767744652053,-225.687069,0.00037403,31]
[400615290,1767744652063,-225.687069,0.00037403,31]
[400615291,1767744652073,-225.687069,0.00037403,31]
[400615292,1767744652082,-225.687069,0.00037403,31]
[400615293,1767744652092,-225.687069,0.00037403,31]
[400615294,1767744652102,-225.687069,0.00037403,31]
[400615295,1767744652111,-225.687069,0.00037403,31]
[400615296,1767744652121,-225.687069,0.00037403,31]
[400615297,1767744652131,-225.687069,0.00037403,31]
[400615298,1767744652141,-225.687064,0.00037403,31]
[400615299,1767744652151,-151.0,0.00037403,31]
[400615300,1767744652160,-151.0,0.00037403,31]
[400615301,1767744652169,-151.0,0.00037403,31]
[400615302,1767744652179,-151.0,0.00037403,31]
[400615303,1767744652188,-189.018412,0.00037403,31]
[400615304,1767744652198,-189.018412,0.00037403,31]
[400615305,1767744652207,-189.018412,0.00037403,31]
[400615306,1767744652216,-189.018412,0.00037403,31]
[400615307,1767744652225,-189.018412,0.00037403,31]
[400615308,1767744652235,-4000.0,0.00037403,31]
[400615309,1767744652244,-189.018412,0.00037403,31]
[400615310,1767744652253,-4000.0,0.00037403,31]
[400615311,1767744652262,-189.018412,0.00037403,31]
[400615312,1767744652271,-4000.0,0.00037403,31]
[400615313,1767744652280,-189.018412,0.00037403,31]
[400615314,1767744652289,-4000.0,0.00037403,31]
[400615315,1767744652299,-189.018412,0.00037403,31]
[400615316,1767744652307,-4000.0,0.00037403,31]
[400615317,1767744652316,-189.018412,0.00037403,31]
[400615318,1767744652325,-4000.0,0.00037403,31]
[400615319,1767744652337,-189.018412,0.00037403,31]
[400615320,1767744652346,-4000.0,0.00037403,31]
[400615321,1767744652356,-189.018412,0.00037403,31]
[400615322,1767744652365,-4000.0,0.00037403,31]
[400615323,1767744652375,-189.018412,0.00037403,31]
[400615324,1767744652384,-4000.0,0.00037403,31]
[400615325,1767744652397,-189.018412,0.00037403,31]
[400615326,1767744652407,-4000.0,0.00037403,31]
[400615327,1767744652416,-189.018412,0.00037403,31]
[400615328,1767744652425,-4000.0,0.00037403,31]
[400615329,1767744652436,-189.018412,0.00037403,31]
[400615330,1767744652446,-4000.0,0.00037403,31]
[400615331,1767744652455,-4000.0,0.00037403,31]
[400615332,1767744652464,-4000.0,0.00037403,31]
[400615333,1767744652473,-4000.0,0.00037403,31]
[400615334,1767744652482,-4000.0,0.00037403,31]
[400615335,1767744652491,-349.869649,0.00037403,28]
[400615336,1767744652500,-349.869649,0.00037403,28]
[400615337,1767744652509,-349.869649,0.00037403,28]
[400615338,1767744652518,-349.869649,0.00037403,28]
[400615339,1767744652528,-349.869649,0.00037403,28]
[400615340,1767744652537,-349.869649,0.00037403,28]
[400615341,1767744652546,-349.869649,0.00037403,28]
[400615342,1767744652555,-349.869649,0.00037403,28]
[400615343,1767744652564,-349.869649,0.00037403,28]
[400615344,1767744652574,-349.869649,0.00037403,28]
[400615345,1767744652583,-349.869649,0.00037403,28]
[400615346,1767744652592,-349.869649,0.00037403,28]
[400615347,1767744652601,-349.869649,0.00037403,28]
[400615348,1767744652611,-349.869649,0.00037403,28]
[400615349,1767744652620,-349.869649,0.00037403,28]
[400615350,1767744652629,-349.869657,0.00037403,28]
[400615351,1767744652639,-151.0,0.00037403,31]
[400615352,1767744652648,-151.0,0.00037403,31]
[400615353,1767744652656,-151.0,0.00037403,31]
[400615354,1767744652665,-151.0,0.00037403,31]
[400615355,1767744652674,-151.0,0.00037403,31]
[400615356,1767744652683,-151.0,0.00037403,31]
[400615357,1767744652692,-151.0,0.00037403,31]
[400615358,1767744652701,-151.0,0.00037403,31]
[400615359,1767744652710,-151.0,0.00037403,31]
[400615360,1767744652719,-151.0,0.00037403,31]
[400615361,1767744652728,-151.0,0.00037403,31]
[400615362,1767744652737,-214.232092,0.00037403,31]
[400615363,1767744652746,-697479.73803827,0.00037403,20]
[400615364,1767744653182,-3e-08,0.00012961,2]
[400615365,1767744653193,-499.99999997,0.00012961,2]
[400615366,1767744653203,-500.0,0.00012961,2]
[400615367,1767744653212,-330.0,0.00012961,2]
[400615368,1767744653221,-500.0,0.00012961,2]
[400615369,1767744653230,-500.0,0.00012961,2]
[400615370,1767744653239,-500.0,0.00012961,2]
[400615371,1767744653249,-500.0,0.00012961,2]
[400615372,1767744653258,-500.0,0.00012961,2]
[400615373,1767744653268,-2361.84153324,0.00035534,2]
[400615374,1767744653277,-2361.84153324,0.00035821,2]
[400615375,1767744653287,-2361.84153324,0.00036017,2]
[400615376,1767744653296,-2361.84153324,0.00036169,2]
[400615377,1767744653305,-2361.84153324,0.00036685,2]
[400615378,1767744653315,-2361.84153324,0.00036836,2]
[400615379,1767744653324,-44304.11673209,0.00037403,20]
[400615380,1767744653336,-41590.79437292,0.00037403,20]
[400615381,1767744655187,-500.0,0.00012861,2]
[400615382,1767744655196,-500.0,0.00012861,2]
[400615383,1767744655205,-277.48311696,0.00012861,2]
[400615384,1767744655215,-507.0,0.00032842,30]
[400615385,1767744655226,-639.0,0.00032842,30]
[400615386,1767744655238,-981.5,0.00032842,30]
[400615387,1767744655247,-50815.81,0.00032877,10]
[400615388,1767744655256,-184.3704767,0.00036301,30]
[400615389,1767744655265,-376.8200359,0.00036493,30]
[400615390,1767744655274,-600.6566519,0.0003663,30]
[400615391,1767744655283,-2361.84153327,0.00037218,2]
[400615392,1767744655293,-334372.70440562,0.00037403,20]
[400615393,1767744655304,-35645.40304412,0.00037403,20]
[400615394,1767744655316,-2080.75000043,0.00037403,20]
[400615395,1767744655335,-2455.38369134,0.00037403,20]
[400615508,1767745721920,1765.93200928,8.9e-05,2]